fUST/lending_fUST_20251231
["ID","MTS","AMOUNT","RATE_DAILY","PERIOD"]
[400110067,1767126639699,-500.0,0.00025343,2]
[400110068,1767126639708,-900.0,0.00025469,3]
[400110069,1767126639717,-401.25145523,0.0002548,2]
[400110070,1767126639726,-1000.0,0.000255,2]
[400110071,1767126639735,-257.353,0.0002572,11]
[400110072,1767126639745,-533.88981491,0.0002575,2]
[400110073,1767126639754,-5000.0,0.00025763,2]
[400110074,1767126639764,-500.0,0.00025765,7]
[400110075,1767126639773,-1501.63207536,0.0002587,2]
[400110076,1767126639782,-39742.13262439,0.00026,10]
[400110077,1767126639791,-1041.66666667,0.00026,10]
[400110078,1767126639801,-529.2410511,0.00026,2]
[400110079,1767126639810,-9019.57798827,0.00026,30]
[400110080,1767126639823,-880.42128627,0.00026,30]
[400110081,1767126639834,-407.11908277,0.00026,30]
[400110089,1767126640301,-463.78,0.0002464,10]
[400110090,1767126640311,-24719.27545317,0.00026,30]
[400110091,1767126640323,-501.88450925,0.00026,30]
[400110092,1767126640355,-82000.15668,0.00026,30]
[400110182,1767126646436,-1175.06,0.00026,30]
[400110277,1767126790441,158.57643387,0.00025334,120]
[400110294,1767126865016,-740.88140641,0.00012942,2]
[400110296,1767126869231,-267.36407505,0.00012942,2]
[400110297,1767126870868,-608.63334278,0.00012942,2]
[400110300,1767126877032,-531.82573339,0.00012942,2]
[400110302,1767126879192,-205.80722223,0.00012942,2]
[400110303,1767126881538,-325.2294301,0.00012942,2]
[400110304,1767126885410,-305.91703775,0.00012942,2]
[400110305,1767126887606,-218.71,0.00012942,2]
[400110306,1767126892719,-503.11240054,0.00012942,2]
[400110307,1767126894245,-155.7024382,0.00012942,2]
[400110308,1767126897509,-322.01555826,0.00012942,2]
[400110309,1767126902125,-221.47389519,0.00012942,2]
[400110310,1767126905015,-258.40602491,0.00012942,2]
[400110311,1767126909410,-222.83310953,0.00012942,2]
[400110321,1767127055341,1622.5381872,0.00012771,2]
[400110322,1767127055364,2308.71359327,0.00012771,2]
[400110334,1767127352101,7691.29640673,0.00012723,2]
[400110335,1767127352123,7129.90237577,0.00012723,2]
[400110374,1767127548117,-618.03105456,0.00013,7]
[400110375,1767127633122,-171.81341038,0.00012999,2]
[400110379,1767127749098,-300.0,0.00012999,2]
[400110380,1767127749124,-150.0,0.00013,2]
[400110381,1767127749148,-3811.18525548,0.00013,7]
[400110384,1767127768085,-9570.80326707,0.00013,7]
[400110385,1767127768106,-604.0,0.00013007,2]
[400110386,1767127768127,-143.59938308,0.00013073,2]
[400110387,1767127770080,-63.73572327,0.00013073,2]
[400110388,1767127770100,-500.0,0.00013273,2]
[400110389,1767127770121,-4616.60953459,0.00013598,2]
[400110390,1767127770140,-500.0,0.00013695,2]
[400110391,1767127770162,-403.89011315,0.00013695,2]
[400110392,1767127770182,-500.0,0.00013695,2]
[400110393,1767127770201,-112.90837508,0.00013695,2]
[400110416,1767127832195,-500.0,0.00013273,2]
[400110417,1767127832204,-151.0,0.0001369,2]
[400110419,1767127832213,-266.73517348,0.0001369,2]
[400110421,1767127832223,-300.0,0.00013694,2]
[400110422,1767127832232,-1200.0,0.00013694,2]
[400110423,1767127832242,-615.0,0.00013695,2]
[400110424,1767127832252,-387.09162492,0.00013695,2]
[400110425,1767127832261,-500.0,0.00013695,2]
[400110426,1767127832271,-596.60610422,0.00013695,2]
[400110427,1767127832280,-500.0,0.00013695,2]
[400110428,1767127832289,-500.0,0.00013695,2]
[400110429,1767127832299,-500.0,0.00013695,2]
[400110430,1767127832308,-500.0,0.00013695,2]
[400110431,1767127832318,-500.0,0.00013695,2]
[400110432,1767127832327,-500.0,0.00013695,2]
[400110433,1767127832337,-421.74497478,0.00013695,2]
[400110434,1767127832347,-504.99274746,0.00013695,2]
[400110435,1767127832356,-500.0,0.00013695,2]
[400110436,1767127832366,-500.0,0.00013695,2]
[400110437,1767127832375,-500.0,0.00013695,2]
[400110438,1767127832385,-296.35,0.00013695,2]
[400110439,1767127832395,-500.0,0.00013695,2]
[400110440,1767127832406,-500.0,0.00013695,2]
[400110441,1767127832415,-500.0,0.00013695,2]
[400110442,1767127832425,-500.0,0.00013695,2]
[400110443,1767127832435,-306.72602798,0.00013695,2]
[400110444,1767127832444,-500.0,0.00013695,2]
[400110445,1767127832454,-500.0,0.00013695,2]
[400110446,1767127832463,-184.47331872,0.00013695,2]
[400110447,1767127832472,-500.0,0.00013695,2]
[400110448,1767127832482,-500.0,0.00013695,2]
[400110449,1767127832491,-500.0,0.00013695,2]
[400110450,1767127832502,-331.98886667,0.00013695,2]
[400110451,1767127832511,-500.0,0.00013695,2]
[400110452,1767127832520,-29619.09848283,0.00013696,2]
[400110453,1767127832530,-405.61165868,0.00013698,2]
[400110454,1767127832543,-1095.64119081,0.00013698,2]
[400110455,1767127832553,-1095.64119081,0.00013698,2]
[400110456,1767127832563,-1095.64119081,0.00013698,2]
[400110457,1767127832573,-1095.64119081,0.00013698,2]
[400110458,1767127832583,-1095.64119081,0.00013698,2]
[400110459,1767127832593,-1095.64119081,0.00013698,2]
[400110460,1767127832603,-1095.64119081,0.00013698,2]
[400110461,1767127832612,-489.47658,0.00013699,2]
[400110462,1767127832622,-757.0249156,0.00013699,2]
[400110463,1767127832631,-60346.1630808,0.00013699,2]
[400110464,1767127832641,-31845.991124,0.00013759,2]
[400110465,1767127832651,-1000.0,0.00013821,2]
[400110466,1767127832662,-256.43434795,0.00014368,2]
[400110467,1767127832671,-177.0,0.00015,2]
[400110468,1767127832680,-420.0,0.00015008,2]
[400110469,1767127832690,-1680.0,0.00015064,2]
[400110470,1767127832699,-181.87665,0.00015068,2]
[400110471,1767127832709,-244.29470963,0.00015823,2]
[400110472,1767127832719,-2252.25570964,0.00015986,2]
[400110473,1767127832728,-587.0,0.00016447,2]
[400110474,1767127832738,-439.0,0.0001657,2]
[400110475,1767127832748,-204.0,0.00017,2]
[400110476,1767127832761,-747.0,0.00018024,2]
[400110477,1767127832771,-231.0,0.00018999,2]
[400110478,1767127832780,-489.47658,0.00020187,2]
[400110479,1767127832790,-244.29470963,0.00020222,2]
[400110480,1767127832800,-258.0,0.00020999,2]
[400110481,1767127832809,-500.0,0.00022423,2]
[400110482,1767127832818,-500.0,0.00022512,2]
[400110483,1767127832828,-5000.0,0.00022512,2]
[400110484,1767127832838,-160.0,0.00022894,2]
[400110485,1767127832847,-1041.66666667,0.00022894,2]
[400110486,1767127832857,-265.61,0.000229,7]
[400110487,1767127832867,-774.76,0.000229,14]
[400110488,1767127832876,-285.0,0.00022999,2]
[400110489,1767127832885,-500.0,0.00023152,2]
[400110490,1767127832895,-500.0,0.00023346,2]
[400110491,1767127832905,-4616.60953459,0.00023819,2]
[400110492,1767127832914,-274.2217451,0.00024231,2]
[400110493,1767127832923,-150.0,0.00024521,2]
[400110494,1767127832933,-500.0,0.00024521,2]
[400110495,1767127832943,-500.0,0.00024521,2]
[400110496,1767127832952,-244.29470963,0.00024622,2]
[400110497,1767127832961,-150.0,0.00024658,2]
[400110498,1767127832970,-500.0,0.00024658,2]
[400110499,1767127832979,-500.0,0.00024658,2]
[400110500,1767127832989,-150.0,0.00024658,2]
[400110501,1767127832998,-279.96642003,0.00024795,2]
[400110502,1767127833008,-500.0,0.00024795,2]
[400110503,1767127833018,-250.0,0.00024795,2]
[400110504,1767127833028,-155.1556395,0.0002486,2]
[400110505,1767127833037,-496.47127164,0.0002486,2]
[400110506,1767127833046,-151.0,0.0002486,2]
[400110507,1767127833055,-234.89380085,0.0002486,2]
[400110508,1767127833064,-26718.5098869,0.000249,2]
[400110509,1767127833074,-500.0,0.00024932,2]
[400110510,1767127833083,-8202.34611885,0.00024956,2]
[400110511,1767127833095,-420.75168183,0.00024956,2]
[400110517,1767127838402,-1095.64119081,0.00013698,2]
[400110518,1767127838420,-587.87520719,0.00013698,2]
[400110551,1767127840644,-3e-08,0.00013698,2]
[400110553,1767127840656,-507.76598359,0.00013698,2]
[400110555,1767127840666,-1095.64119081,0.00013698,2]
[400110557,1767127840675,-1095.64119081,0.00013698,2]
[400110559,1767127840684,-1095.64119081,0.00013698,2]
[400110561,1767127840693,-1095.64119081,0.00013698,2]
[400110562,1767127840703,-1095.64119081,0.00013698,2]
[400110564,1767127840712,-1095.64119081,0.00013698,2]
[400110566,1767127840723,-1095.64119081,0.00013698,2]
[400110568,1767127840733,-1095.64119081,0.00013698,2]
[400110572,1767127840743,-1095.64119081,0.00013698,2]
[400110574,1767127840755,-283.07216162,0.00024956,2]
[400110576,1767127840764,-286.20300317,0.00024966,2]
[400110578,1767127840773,-515.16540571,0.00024966,2]
[400110580,1767127840782,-915.84961015,0.00024966,2]
[400110582,1767127840792,-1431.01501586,0.00024966,2]
[400110584,1767127840801,-2060.66162284,0.00024966,2]
[400110586,1767127840811,-327.16907113,0.00024966,2]
[400110588,1767127840820,-312.0,0.00025,2]
[400110590,1767127840832,-272.19084472,0.00025014,15]
[400110592,1767127840842,-363.28817958,0.00025055,2]
[400110594,1767127840851,-653.91872324,0.00025055,2]
[400110596,1767127840860,-1162.52217465,0.00025055,2]
[400110598,1767127840869,-1816.44089789,0.00025055,2]
[400110600,1767127840879,-2615.67489297,0.00025055,2]
[400110602,1767127840888,-3560.22415987,0.00025055,2]
[400110603,1767127840898,-4650.08869861,0.00025055,2]
[400110604,1767127840907,-401.25145523,0.00025069,2]
[400110605,1767127840916,-257.353,0.000252,9]
[400110606,1767127840926,-774.76,0.000253,14]
[400110607,1767127840935,-239.15601835,0.00025334,30]
[400110608,1767127840944,-2258.27288557,0.00025354,4]
[400110609,1767127840954,-514.84070869,0.00025408,2]
[400110610,1767127840963,-265.61,0.000255,7]
[400110611,1767127840972,-151.0,0.0002555,2]
[400110612,1767127840982,-376.3220282,0.00025644,2]
[400110613,1767127840991,-8906.1699623,0.00025688,2]
[400110614,1767127841000,-2033.1651716,0.00025698,2]
[400110615,1767127841010,-2718.2649858,0.00025698,2]
[400110633,1767127845370,-1330.89894074,0.00025698,2]
[400110634,1767127845381,-1046.32681666,0.00025698,2]
[400110635,1767127845393,-4131.12882622,0.00025698,2]
[400110685,1767127846407,-6645.3536406,0.00025698,2]
[400110712,1767128748132,-184.81186814,0.00013272,2]
[400110713,1767128847090,-206.70302237,0.00013272,2]
[400110714,1767128965093,-993.29697763,0.00013272,2]
[400110715,1767128965115,-300.0,0.00013272,2]
[400110716,1767128965136,-150.0,0.00013272,2]
[400110717,1767128965156,-267.00607037,0.00013273,2]
[400110718,1767128965174,-500.0,0.00013273,2]
[400110719,1767128965196,-422.94506622,0.00013273,2]
[400110720,1767128965215,-500.0,0.00013273,2]
[400110721,1767128965236,-297.23227932,0.00013273,2]
[400110722,1767128965255,-500.0,0.00013273,2]
[400110723,1767128965275,-0.69199255,0.00013273,2]
[400110794,1767129032474,-300.0,0.00013272,2]
[400110797,1767129032484,-1009.0,0.00013272,2]
[400110799,1767129032493,-9.77747175,0.00013273,2]
[400110802,1767129032504,-319.74,0.00013273,2]
[400110805,1767129032516,-169.7905357,0.00013273,2]
[400110807,1767129032525,-415.34317373,0.00013273,2]
[400110809,1767129032535,-500.0,0.00013273,2]
[400110811,1767129032545,-4445.98010129,0.00013273,2]
[400110813,1767129032555,-500.0,0.00013273,2]
[400110815,1767129032565,-500.0,0.00013698,2]
[400110817,1767129032574,-500.0,0.00013698,2]
[400110818,1767129032583,-500.0,0.00013699,2]
[400110820,1767129032593,-407.11553711,0.00013699,2]
[400110822,1767129032602,-500.0,0.00013821,2]
[400110824,1767129032611,-497.57560765,0.00013821,2]
[400110826,1767129032620,-1000.0,0.00013821,2]
[400110829,1767129032629,-500.0,0.00014247,2]
[400110832,1767129032638,-420.0,0.00014551,2]
[400110835,1767129032647,-177.0,0.00015272,2]
[400110836,1767129032657,-249.73097075,0.00015753,2]
[400110838,1767129032667,-587.0,0.00015953,2]
[400110840,1767129032676,-306.45393252,0.0001692,2]
[400110842,1767129032685,-965.2770871,0.00017242,2]
[400110844,1767129032694,-204.0,0.00017272,2]
[400110846,1767129032703,-500.0,0.00017489,2]
[400110848,1767129032712,-442.0,0.0001749,2]
[400110850,1767129032721,-250.0,0.00017537,2]
[400110852,1767129032731,-292.33041072,0.00017563,2]
[400110854,1767129032740,-231.0,0.00019272,2]
[400110856,1767129032749,-249.73097075,0.0002017,2]
[400110858,1767129032759,-258.0,0.00021272,2]
[400110860,1767129032769,-223.68256936,0.0002132,2]
[400110862,1767129032777,-500.0,0.00021917,2]
[400110864,1767129032788,-500.0,0.00021917,2]
[400110866,1767129032799,-500.0,0.00021917,2]
[400110867,1767129032808,-500.0,0.00021917,2]
[400110869,1767129032818,-500.0,0.00021917,2]
[400110871,1767129032827,-500.0,0.00021917,2]
[400110873,1767129032836,-500.0,0.00021917,2]
[400110875,1767129032846,-150.0,0.00021918,2]
[400110877,1767129032855,-186.70506458,0.00022091,2]
[400110879,1767129032865,-500.0,0.00022191,2]
[400110881,1767129032874,-500.0,0.00022191,2]
[400110883,1767129032883,-500.0,0.00022191,2]
[400110885,1767129032892,-500.0,0.00022191,2]
[400110887,1767129032901,-500.0,0.00022191,2]
[400110889,1767129032911,-500.0,0.00022191,2]
[400110891,1767129032920,-500.0,0.00022191,2]
[400110893,1767129032930,-157.0,0.00022301,7]
[400110895,1767129032939,-255.15,0.00022398,2]
[400110910,1767129033078,-167.22141638,0.00022398,2]
[400110912,1767129033088,-500.0,0.00022398,2]
[400110914,1767129033098,-500.0,0.00022398,2]
[400110916,1767129033107,-259.10987407,0.00022398,2]
[400110917,1767129033116,-445.04563764,0.00022398,2]
[400110919,1767129033126,-500.0,0.00022398,2]
[400110921,1767129033135,-500.0,0.00022398,2]
[400110923,1767129033145,-500.0,0.00022398,2]
[400110925,1767129033154,-525.603904,0.00022399,2]
[400110927,1767129033163,-500.0,0.00022399,2]
[400110929,1767129033172,-599.84852211,0.00022399,2]
[400110930,1767129033182,-543.01533026,0.00022399,2]
[400110932,1767129033191,-500.0,0.00022399,2]
[400110934,1767129033203,-500.0,0.00022399,2]
[400110936,1767129033213,-500.0,0.00022399,2]
[400110938,1767129033223,-500.0,0.00022399,2]
[400110939,1767129033232,-500.0,0.00022399,2]
[400110940,1767129033244,-500.0,0.00022399,2]
[400110941,1767129033253,-500.0,0.00022399,2]
[400110942,1767129033262,-500.0,0.00022399,2]
[400110943,1767129033272,-507.76343984,0.00022399,2]
[400110944,1767129033282,-500.0,0.00022399,2]
[400110945,1767129033292,-500.0,0.00022399,2]
[400110946,1767129033302,-1000.0,0.000224,2]
[400110947,1767129033312,-1000.0,0.000224,2]
[400110948,1767129033322,-1000.0,0.000224,2]
[400110949,1767129033331,-1000.0,0.000224,2]
[400110950,1767129033341,-1000.0,0.000224,2]
[400110951,1767129033350,-1000.0,0.000224,2]
[400110952,1767129033360,-1000.0,0.000224,2]
[400110953,1767129033370,-1000.0,0.000224,2]
[400110954,1767129033379,-1000.0,0.000224,2]
[400110955,1767129033388,-1000.0,0.000224,2]
[400110956,1767129033398,-522.628705,0.000224,2]
[400110957,1767129033408,-500.0,0.00022465,2]
[400110958,1767129033418,-500.0,0.00022465,2]
[400110959,1767129033429,-500.0,0.00022465,2]
[400110960,1767129033439,-500.0,0.00022465,2]
[400110961,1767129033448,-500.0,0.00022465,2]
[400110962,1767129033457,-500.0,0.00022465,2]
[400110963,1767129033467,-500.0,0.00022465,2]
[400110964,1767129033476,-300.0,0.00022466,2]
[400110965,1767129033485,-465.05553057,0.00022488,2]
[400110966,1767129033495,-191.79576387,0.00022513,2]
[400110967,1767129033504,-500.0,0.00022673,2]
[400110968,1767129033513,-500.0,0.00022673,2]
[400110969,1767129033523,-205.89138084,0.00022673,2]
[400110970,1767129033532,-500.0,0.00022673,2]
[400110971,1767129033541,-500.0,0.00022673,2]
[400110972,1767129033551,-500.0,0.00022673,2]
[400110973,1767129033560,-500.0,0.00022673,2]
[400110974,1767129033569,-500.0,0.00022673,2]
[400110975,1767129033579,-335.89,0.00022673,2]
[400110976,1767129033589,-500.0,0.00022739,2]
[400110977,1767129033598,-500.0,0.00022739,2]
[400110978,1767129033607,-500.0,0.00022739,2]
[400110979,1767129033616,-352.63,0.00022739,2]
[400110980,1767129033627,-500.0,0.00022739,2]
[400110981,1767129033636,-500.0,0.00022739,2]
[400110982,1767129033645,-500.0,0.00022739,2]
[400110983,1767129033655,-500.0,0.00022761,2]
[400110984,1767129033664,-1041.66666667,0.00022941,2]
[400110985,1767129033674,-500.0,0.00022947,2]
[400110986,1767129033684,-500.0,0.00022947,2]
[400110987,1767129033693,-500.0,0.00022947,2]
[400110988,1767129033702,-500.0,0.00022947,2]
[400110989,1767129033712,-500.0,0.00022947,2]
[400110990,1767129033721,-500.0,0.00022947,2]
[400110991,1767129033731,-500.0,0.00022947,2]
[400110992,1767129033740,-500.0,0.00023013,2]
[400110993,1767129033749,-500.0,0.00023013,2]
[400110994,1767129033758,-500.0,0.00023013,2]
[400110995,1767129033767,-500.0,0.00023013,2]
[400110996,1767129033776,-151.43633965,0.00023013,2]
[400110997,1767129033786,-500.0,0.00023013,2]
[400110998,1767129033795,-450.0,0.00023014,2]
[400110999,1767129033804,-500.0,0.00023221,2]
[400111000,1767129033813,-500.0,0.00023221,2]
[400111001,1767129033822,-500.0,0.00023221,2]
[400111002,1767129033831,-500.0,0.00023221,2]
[400111003,1767129033840,-500.0,0.00023221,2]
[400111004,1767129033850,-274.66,0.00023221,2]
[400111005,1767129033859,-500.0,0.00023221,2]
[400111006,1767129033869,-285.0,0.00023272,2]
[400111007,1767129033878,-500.0,0.00023287,2]
[400111008,1767129033887,-500.0,0.00023287,2]
[400111009,1767129033897,-500.0,0.00023287,2]
[400111010,1767129033906,-500.0,0.00023287,2]
[400111011,1767129033916,-500.0,0.00023287,2]
[400111012,1767129033925,-500.0,0.000233,2]
[400111013,1767129033936,-274.221745,0.00023395,2]
[400111014,1767129033946,-500.0,0.00023495,2]
[400111015,1767129033956,-500.0,0.00023495,2]
[400111016,1767129033965,-500.0,0.00023495,2]
[400111017,1767129033975,-500.0,0.00023495,2]
[400111018,1767129033984,-500.0,0.00023495,2]
[400111019,1767129033994,-500.0,0.00023495,2]
[400111020,1767129034004,-500.0,0.00023561,2]
[400111021,1767129034014,-223.2,0.00023561,2]
[400111022,1767129034023,-500.0,0.00023561,2]
[400111023,1767129034032,-500.0,0.00023561,2]
[400111024,1767129034042,-500.0,0.00023561,2]
[400111025,1767129034052,-600.0,0.00023562,2]
[400111026,1767129034062,-1308.10770071,0.00023669,2]
[400111027,1767129034071,-151.0,0.000237,6]
[400111028,1767129034081,-151.0,0.000237,5]
[400111029,1767129034090,-500.0,0.00023716,2]
[400111030,1767129034099,-386.48,0.00023723,10]
[400111031,1767129034108,-322.07,0.00023723,10]
[400111032,1767129034118,-283.92816108,0.00023733,2]
[400111033,1767129034128,-1354.34377361,0.00023733,2]
[400111034,1767129034137,-1354.34377361,0.00023733,2]
[400111035,1767129034147,-1354.34377361,0.00023733,2]
[400111036,1767129034157,-1354.34377361,0.00023733,2]
[400111037,1767129034166,-1354.34377361,0.00023733,2]
[400111038,1767129034176,-1354.34377361,0.00023733,2]
[400111039,1767129034185,-1354.34377361,0.00023733,2]
[400111040,1767129034195,-1354.34377361,0.00023733,2]
[400111041,1767129034208,-1354.34377361,0.00023733,2]
[400111042,1767129034218,-1354.34377361,0.00023733,2]
[400111043,1767129034227,-1354.34377361,0.00023733,2]
[400111044,1767129034238,-1354.34377361,0.00023733,2]
[400111045,1767129034248,-1354.34377361,0.00023733,2]
[400111046,1767129034257,-1354.34377361,0.00023733,2]
[400111047,1767129034267,-1354.34377361,0.00023733,2]
[400111048,1767129034278,-1354.34377361,0.00023733,2]
[400111049,1767129034287,-1354.34377361,0.00023733,2]
[400111050,1767129034296,-1455.91955663,0.00023733,2]
[400111051,1767129034306,-1455.91955663,0.00023733,2]
[400111052,1767129034315,-1455.91955663,0.00023733,2]
[400111053,1767129034324,-1455.91955663,0.00023733,2]
[400111054,1767129034334,-1455.91955663,0.00023733,2]
[400111055,1767129034343,-1455.91955663,0.00023733,2]
[400111056,1767129034352,-1455.91955663,0.00023733,2]
[400111057,1767129034362,-1455.91955663,0.00023733,2]
[400111058,1767129034371,-1634.38711519,0.00023733,2]
[400111059,1767129034380,-1634.38711519,0.00023733,2]
[400111060,1767129034390,-1634.38711519,0.00023733,2]
[400111061,1767129034399,-200.75766743,0.00023733,2]
[400111062,1767129034408,-21780.7668617,0.00023734,2]
[400111063,1767129034449,-290.8,0.00023734,2]
[400111064,1767129034460,-58899.64924003,0.00023734,2]
[400111065,1767129034471,-461.90570461,0.00023734,2]
[400111089,1767129038493,-918566.87819366,0.00023734,2]
[400111090,1767129038503,-500.0,0.00023769,2]
[400111091,1767129038513,-500.0,0.00023769,2]
[400111092,1767129038523,-500.0,0.00023769,2]
[400111093,1767129038533,-500.0,0.00023769,2]
[400111094,1767129038543,-789.47,0.00023799,2]
[400111095,1767129038553,-758.16,0.000238,14]
[400111096,1767129038562,-281.28,0.000238,7]
[400111097,1767129038572,-6691.13,0.000238,2]
[400111098,1767129038582,-500.0,0.00023832,2]
[400111099,1767129038591,-262.27534836,0.00023832,2]
[400111100,1767129038600,-500.0,0.00023833,2]
[400111101,1767129038610,-27288.7859693,0.00023834,2]
[400111102,1767129038619,-301.209655,0.00023834,2]
[400111103,1767129038629,-7069.9039002,0.00023834,2]
[400111104,1767129038639,-3512.0901955,0.00023834,2]
[400111105,1767129038648,-1103.754861,0.00023834,2]
[400111106,1767129038658,-200.0,0.00023835,2]
[400111107,1767129038668,-500.0,0.00023835,2]
[400111108,1767129038677,-500.0,0.00023835,2]
[400111109,1767129038686,-500.0,0.00023835,2]
[400111110,1767129038696,-500.0,0.00023835,2]
[400111111,1767129038706,-376.3220282,0.00023945,2]
[400111112,1767129038715,-780.46327581,0.00024022,2]
[400111113,1767129038725,-302.11441947,0.00024032,2]
[400111114,1767129038734,-500.0,0.00024043,2]
[400111115,1767129038744,-513.16,0.00024043,2]
[400111116,1767129038753,-500.0,0.00024109,2]
[400111117,1767129038763,-500.0,0.00024109,2]
[400111118,1767129038772,-639.8,0.00024109,2]
[400111119,1767129038781,-500.0,0.00024109,2]
[400111120,1767129038791,-300.0,0.0002411,2]
[400111121,1767129038801,-151.05720973,0.00024162,2]
[400111122,1767129038810,-1308.1077007,0.0002428,2]
[400111123,1767129038820,-500.0,0.00024317,2]
[400111124,1767129038829,-302.11441947,0.00024321,17]
[400111125,1767129038839,-500.0,0.00024383,2]
[400111126,1767129038848,-500.0,0.00024383,2]
[400111127,1767129038858,-500.0,0.00024383,2]
[400111128,1767129038868,-376.1809797,0.00024441,2]
[400111129,1767129038878,-500.0,0.00024518,2]
[400111130,1767129038888,-249.73097075,0.00024586,2]
[400111131,1767129038899,-22059.08240088,0.000246,3]
[400111132,1767129038909,-1041.66666667,0.000246,3]
[400111133,1767129038919,-302.11441947,0.0002461,32]
[400111134,1767129038929,-500.0,0.00024657,2]
[400111135,1767129038940,-500.0,0.00024657,2]
[400111136,1767129038950,-380.0,0.00024658,2]
[400111137,1767129038959,-165.69776986,0.00024795,2]
[400111138,1767129038970,-169.22126826,0.00024795,2]
[400111139,1767129038980,-151.37234462,0.00024795,2]
[400111140,1767129038990,-205.42464996,0.00024795,2]
[400111141,1767129039000,-150.0,0.00024795,2]
[400111142,1767129039010,-150.0,0.00024795,2]
[400111143,1767129039020,-200.0,0.00024795,2]
[400111144,1767129039030,-159.63944667,0.00024795,2]
[400111145,1767129039039,-150.0,0.00024795,2]
[400111146,1767129039050,-150.0,0.00024795,2]
[400111147,1767129039059,-13544.08995543,0.000248,2]
[400111148,1767129039069,-1308.1077007,0.0002489,2]
[400111149,1767129039078,-302.11441947,0.00024899,48]
[400111150,1767129039088,-806.453232,0.000249,7]
[400111151,1767129039097,-806.453232,0.000249,7]
[400111152,1767129039106,-806.453232,0.000249,7]
[400111153,1767129039116,-806.453232,0.000249,7]
[400111154,1767129039125,-151.0,0.000249,7]
[400111155,1767129039134,-151.0,0.000249,7]
[400111156,1767129039144,-151.0,0.000249,7]
[400111157,1767129039153,-151.0,0.000249,7]
[400111158,1767129039162,-112632.75661867,0.000249,2]
[400111159,1767129039182,-2831.08737335,0.000249,2]
[400111160,1767129039193,-5926.19214953,0.000249,2]
[400111194,1767129046502,-268.39,0.00023724,10]
[400111195,1767129046512,-1431.5139672,0.000249,2]
[400111197,1767129046693,-20.53465201,0.000249,2]
[400111311,1767129377441,150.0,0.00028767,120]
[400111343,1767129996252,-150.0,0.00013221,2]
[400111344,1767129996273,-9.68718161,0.0001327,2]
[400111346,1767130035572,150.0,0.00028767,120]
[400111354,1767130145118,-414.5615101,0.00013173,2]
[400111361,1767130231541,-150.0,0.00013221,2]
[400111362,1767130231553,-307.39099877,0.00013271,2]
[400111363,1767130231600,-892.60900123,0.00013271,2]
[400111364,1767130231611,-300.0,0.00013272,2]
[400111365,1767130231622,-300.0,0.00013272,2]
[400111366,1767130231632,-300.0,0.00013272,2]
[400111367,1767130231641,-300.0,0.00013272,2]
[400111368,1767130231651,-300.0,0.00013272,2]
[400111369,1767130231664,-500.0,0.00013273,2]
[400111370,1767130231674,-185.02516817,0.00013273,2]
[400111371,1767130231683,-269.7113098,0.00013273,2]
[400111373,1767130231693,-50000.0,0.00013273,2]
[400111374,1767130231702,-340.60756482,0.00013273,2]
[400111375,1767130231712,-512.8342929,0.00013273,2]
[400111376,1767130231721,-501.19052166,0.00013273,2]
[400111377,1767130231730,-216.07114401,0.00013273,2]
[400111378,1767130231739,-214.70401505,0.00013273,2]
[400111379,1767130231748,-283.34900001,0.00013698,2]
[400111380,1767130231757,-464.736496,0.00013699,2]
[400111381,1767130231767,-161.13378993,0.00013699,2]
[400111382,1767130231778,-838.86621007,0.00013699,2]
[400111383,1767130231787,-2059.20135952,0.00013699,2]